[Event "Early-Titled-Tuesday-Blitz-February-06-2024"]
[Site "Chess.com"]
[Date "2024.02.06"]
[Round "4"]
[White "secretsuperstar7"]
[Black "FaustinoOro"]
[Result "0-1"]
[WhiteElo "2516"]
[BlackElo "2769"]
[TimeControl "180+1"]
[EndTime "8:42:04 PST"]
[Termination "FaustinoOro won on time"]

1. c4 {[%clk 0:03:00.9]} 1... Nf6 {[%clk 0:02:59.7]} 2. Nc3 {[%clk 0:03:00.7]}
2... e5 {[%clk 0:02:59.8]} 3. g3 {[%clk 0:02:59.1]} 3... Bb4 {[%clk 0:03:00.2]}
4. Bg2 {[%clk 0:02:58.3]} 4... O-O {[%clk 0:03:00.6]} 5. Nf3 {[%clk 0:02:58.1]}
5... Re8 {[%clk 0:03:00.2]} 6. O-O {[%clk 0:02:57.8]} 6... e4 {[%clk 0:03:00.2]}
7. Nd4 {[%clk 0:02:57.6]} 7... Nc6 {[%clk 0:02:59.9]} 8. Nc2 {[%clk 0:02:52.2]}
8... Bxc3 {[%clk 0:03:00]} 9. dxc3 {[%clk 0:02:51.8]} 9... h6 {[%clk 0:03:00.6]}
10. Ne3 {[%clk 0:02:48.2]} 10... d6 {[%clk 0:03:00.1]} 11. Nd5 {[%clk
0:02:48.2]} 11... Bf5 {[%clk 0:02:54.3]} 12. h3 {[%clk 0:02:41.1]} 12... a5
{[%clk 0:02:50.4]} 13. Be3 {[%clk 0:02:39.7]} 13... Nd7 {[%clk 0:02:43.3]} 14.
Qc2 {[%clk 0:02:24]} 14... b6 {[%clk 0:02:35.7]} 15. Rad1 {[%clk 0:02:15.6]}
15... Nc5 {[%clk 0:02:30.4]} 16. b4 {[%clk 0:01:59.4]} 16... Nd7 {[%clk
0:02:26.3]} 17. c5 {[%clk 0:01:57.4]} 17... bxc5 {[%clk 0:02:16.7]} 18. bxc5
{[%clk 0:01:56.4]} 18... Be6 {[%clk 0:02:01.6]} 19. cxd6 {[%clk 0:01:53.7]}
19... cxd6 {[%clk 0:02:02.5]} 20. Bxe4 {[%clk 0:01:46.2]} 20... Bxh3 {[%clk
0:01:59.8]} 21. Rfe1 {[%clk 0:01:46.3]} 21... Rc8 {[%clk 0:01:26.1]} 22. Nf4
{[%clk 0:01:45.8]} 22... Bg4 {[%clk 0:01:20.5]} 23. f3 {[%clk 0:01:17.3]} 23...
Nf6 {[%clk 0:01:05.5]} 24. Bxc6 {[%clk 0:01:04.2]} 24... Rxc6 {[%clk 0:01:05.2]}
25. Bd4 {[%clk 0:01:00.9]} 25... Bd7 {[%clk 0:01:01]} 26. e4 {[%clk 0:00:50.7]}
26... Nh7 {[%clk 0:00:56]} 27. Kf2 {[%clk 0:00:39.1]} 27... Ng5 {[%clk
0:00:52.2]} 28. Rh1 {[%clk 0:00:37.8]} 28... f6 {[%clk 0:00:40.9]} 29. Qb3+
{[%clk 0:00:33.4]} 29... Be6 {[%clk 0:00:39.3]} 30. Qb5 {[%clk 0:00:15.7]} 30...
Qc7 {[%clk 0:00:33.9]} 31. Nd5 {[%clk 0:00:10.6]} 31... Qc8 {[%clk 0:00:20.6]}
32. Rd3 {[%clk 0:00:10.8]} 32... Nf7 {[%clk 0:00:20]} 33. Be3 {[%clk 0:00:09]}
33... Ne5 {[%clk 0:00:16.6]} 34. Rdd1 {[%clk 0:00:09.2]} 34... Bxd5 {[%clk
0:00:15]} 35. Qxd5+ {[%clk 0:00:09]} 35... Kh7 {[%clk 0:00:15.4]} 36. Bd4 {[%clk
0:00:08.8]} 36... Qc7 {[%clk 0:00:14.3]} 37. f4 {[%clk 0:00:07.1]} 37... Nc4
{[%clk 0:00:13.2]} 38. Qf5+ {[%clk 0:00:06.8]} 38... Kg8 {[%clk 0:00:13.3]} 39.
Qd5+ {[%clk 0:00:06]} 39... Kh7 {[%clk 0:00:10.5]} 40. Qf5+ {[%clk 0:00:06.2]}
40... Kg8 {[%clk 0:00:10.3]} 41. Qd5+ {[%clk 0:00:06.2]} 41... Kf8 {[%clk
0:00:10.1]} 42. Qf5 {[%clk 0:00:05.5]} 42... Qf7 {[%clk 0:00:08.4]} 43. Qh7
{[%clk 0:00:04.6]} 43... Nb2 {[%clk 0:00:06.1]} 44. Rb1 {[%clk 0:00:04]} 44...
Qxa2 {[%clk 0:00:06.2]} 45. Qh8+ {[%clk 0:00:03.7]} 45... Kf7 {[%clk 0:00:06.2]}
46. Qh7 {[%clk 0:00:03.9]} 46... Nc4+ {[%clk 0:00:06.3]} 47. Kf3 {[%clk
0:00:03.9]} 47... Nd2+ {[%clk 0:00:06.8]} 48. Kg4 {[%clk 0:00:04.3]} 48... Qe6+
{[%clk 0:00:07.5]} 49. Kh4 {[%clk 0:00:03.9]} 49... Nxb1 {[%clk 0:00:05.3]} 50.
Rxb1 {[%clk 0:00:03.2]} 50... Rc7 {[%clk 0:00:02.9]} 51. Rb6 {[%clk 0:00:03.4]}
51... Qxe4 {[%clk 0:00:03]} 52. Qxe4 {[%clk 0:00:03.2]} 52... Rxe4 {[%clk
0:00:03.9]} 53. Rxd6 {[%clk 0:00:03.8]} 53... Rc4 {[%clk 0:00:02.5]} 54. Rd7+
{[%clk 0:00:03.7]} 54... Kg6 {[%clk 0:00:03.2]} 55. Kg4 {[%clk 0:00:03.6]} 55...
Re2 {[%clk 0:00:03.5]} 56. f5+ {[%clk 0:00:03.7]} 56... Kh7 {[%clk 0:00:03.6]}
57. Kf3 {[%clk 0:00:03.9]} 57... Re8 {[%clk 0:00:02.7]} 58. Bxf6 {[%clk
0:00:03.6]} 58... Rg8 {[%clk 0:00:03.3]} 59. Bd4 {[%clk 0:00:03.5]} 59... a4
{[%clk 0:00:02.3]} 60. f6 {[%clk 0:00:03]} 60... Kg6 {[%clk 0:00:03]} 61. fxg7
{[%clk 0:00:03.1]} 61... Rc6 {[%clk 0:00:03]} 62. Ra7 {[%clk 0:00:03.1]} 62...
Rc4 {[%clk 0:00:03.3]} 63. Ke4 {[%clk 0:00:02.4]} 63... Kh7 {[%clk 0:00:03.6]}
64. Kd3 {[%clk 0:00:02.7]} 64... Rgc8 {[%clk 0:00:03.6]} 65. g8=Q+ {[%clk
0:00:01.4]} 65... Kxg8 {[%clk 0:00:03.4]} 66. Rg7+ {[%clk 0:00:01.9]} 66... Kf8
{[%clk 0:00:04]} 67. Rh7 {[%clk 0:00:02.2]} 67... R4c6 {[%clk 0:00:04.1]} 68.
Rh8+ {[%clk 0:00:02.3]} 68... Ke7 {[%clk 0:00:04.3]} 69. Rh7+ {[%clk 0:00:02.6]}
69... Kd6 {[%clk 0:00:04]} 70. Rxh6+ {[%clk 0:00:03]} 70... Kc7 {[%clk
0:00:04.7]} 71. Rh7+ {[%clk 0:00:03.2]} 71... Kb8 {[%clk 0:00:05.4]} 72. Rh5
{[%clk 0:00:02.6]} 72... Ra6 {[%clk 0:00:04.3]} 73. Rb5+ {[%clk 0:00:03]} 73...
Ka8 {[%clk 0:00:04.9]} 74. Rb1 {[%clk 0:00:02.5]} 74... a3 {[%clk 0:00:05.4]}
75. Ra1 {[%clk 0:00:02.9]} 75... Rb8 {[%clk 0:00:05.7]} 76. c4 {[%clk
0:00:03.2]} 76... a2 {[%clk 0:00:06.1]} 77. g4 {[%clk 0:00:02.8]} 77... Ra3+
{[%clk 0:00:06.1]} 78. Ke4 {[%clk 0:00:03.2]} 78... Rb1 {[%clk 0:00:06.1]} 79.
Kd5 {[%clk 0:00:02.4]} 79... Kb7 {[%clk 0:00:04.2]} 80. g5 {[%clk 0:00:02.1]}
80... Rxa1 {[%clk 0:00:04.7]} 81. Bxa1 {[%clk 0:00:01.7]} 81... Rd3+ {[%clk
0:00:05.4]} 82. Kc5 {[%clk 0:00:02]} 82... Rd1 {[%clk 0:00:06.3]} 83. Bc3 {[%clk
0:00:02.3]} 83... Rc1 {[%clk 0:00:06]} 84. Be5 {[%clk 0:00:02.6]} 84... a1=Q
{[%clk 0:00:06.3]} 85. Bxa1 {[%clk 0:00:02.6]} 85... Rxa1 {[%clk 0:00:07.2]} 86.
g6 {[%clk 0:00:03]} 86... Rg1 {[%clk 0:00:06.7]} 87. Kd6 {[%clk 0:00:03.2]}
87... Rxg6+ {[%clk 0:00:07.2]} 88. Kd7 {[%clk 0:00:03]} 88... Rc6 {[%clk
0:00:08.1]} 89. Ke7 {[%clk 0:00:02]} 89... Rxc4 {[%clk 0:00:08.6]} 90. Ke6
{[%clk 0:00:02.3]} 90... Kc6 {[%clk 0:00:08.6]} 91. Ke5 {[%clk 0:00:02.2]} 91...
Kc5 {[%clk 0:00:09.2]} 92. Ke6 {[%clk 0:00:02.3]} 92... Rd4 {[%clk 0:00:09.6]}
93. Ke7 {[%clk 0:00:02.7]} 93... Rd6 {[%clk 0:00:09.6]} 94. Kf7 {[%clk
0:00:03.1]} 94... Kd5 {[%clk 0:00:09.9]} 95. Kg7 {[%clk 0:00:02.6]} 95... Ke5
{[%clk 0:00:10.1]} 96. Kh7 {[%clk 0:00:02.3]} 96... Kf6 {[%clk 0:00:09.5]} 97.
Kg8 {[%clk 0:00:02.3]} 97... Rd7 {[%clk 0:00:08.1]} 98. Kh8 {[%clk 0:00:02.1]}
98... Rf7 {[%clk 0:00:06.6]} 99. Kg8 {[%clk 0:00:01.9]} 99... Kg6 {[%clk
0:00:07]} 0-1

[Event "Early-Titled-Tuesday-Blitz-February-06-2024"]
[Site "Chess.com"]
[Date "2024.02.06"]
[Round "5"]
[White "YurasovMat-2012"]
[Black "Brahianzevich"]
[Result "1-0"]
[WhiteElo "2653"]
[BlackElo "2441"]
[TimeControl "180+1"]
[EndTime "8:49:41 PST"]
[Termination "YurasovMat-2012 won by resignation"]

1. e4 {[%clk 0:03:00.9]} 1... c5 {[%clk 0:02:59.9]} 2. Nf3 {[%clk 0:03:01]} 2...
d6 {[%clk 0:03:00.2]} 3. Bb5+ {[%clk 0:03:00.8]} 3... Nd7 {[%clk 0:02:59.9]} 4.
O-O {[%clk 0:03:00]} 4... a6 {[%clk 0:02:59.7]} 5. Bxd7+ {[%clk 0:02:59.2]} 5...
Bxd7 {[%clk 0:03:00.6]} 6. Re1 {[%clk 0:02:59.1]} 6... Nf6 {[%clk 0:02:54.9]} 7.
e5 {[%clk 0:02:58.9]} 7... dxe5 {[%clk 0:02:55.8]} 8. Nxe5 {[%clk 0:02:58.6]}
8... e6 {[%clk 0:02:56.6]} 9. Qf3 {[%clk 0:02:58.1]} 9... Qc8 {[%clk 0:02:52.6]}
10. d3 {[%clk 0:02:56.7]} 10... Be7 {[%clk 0:02:51.7]} 11. Bg5 {[%clk 0:02:55]}
11... O-O {[%clk 0:02:50.8]} 12. Nd2 {[%clk 0:02:54.5]} 12... h6 {[%clk
0:02:49.4]} 13. Bh4 {[%clk 0:02:52.9]} 13... Re8 {[%clk 0:02:49.7]} 14. Ne4
{[%clk 0:02:51.3]} 14... Nxe4 {[%clk 0:02:47.4]} 15. Qxf7+ {[%clk 0:02:50.4]}
15... Kh7 {[%clk 0:02:46.8]} 16. Bxe7 {[%clk 0:02:49.8]} 16... Rxe7 {[%clk
0:02:39]} 17. Qxe7 {[%clk 0:02:47.2]} 17... Nf6 {[%clk 0:02:39.3]} 18. Nxd7
{[%clk 0:02:47.3]} 18... Qxd7 {[%clk 0:02:39.2]} 19. Qxd7 {[%clk 0:02:47.2]}
19... Nxd7 {[%clk 0:02:40.1]} 20. Rxe6 {[%clk 0:02:47.1]} 1-0

[Event "Early-Titled-Tuesday-Blitz-February-06-2024"]
[Site "Chess.com"]
[Date "2024.02.06"]
[Round "5"]
[White "ProChessWICTH"]
[Black "gpsji27"]
[Result "1-0"]
[WhiteElo "2521"]
[BlackElo "2313"]
[TimeControl "180+1"]
[EndTime "8:50:31 PST"]
[Termination "ProChessWICTH won by resignation"]

1. e4 {[%clk 0:03:00.9]} 1... e5 {[%clk 0:02:51.5]} 2. Nf3 {[%clk 0:03:00.8]}
2... Nc6 {[%clk 0:02:45.1]} 3. d4 {[%clk 0:03:01]} 3... exd4 {[%clk 0:02:39.8]}
4. Bc4 {[%clk 0:03:01.6]} 4... Bc5 {[%clk 0:02:40.4]} 5. c3 {[%clk 0:03:01.5]}
5... Nf6 {[%clk 0:02:41.1]} 6. e5 {[%clk 0:02:58.8]} 6... d5 {[%clk 0:02:41.1]}
7. Bb5 {[%clk 0:02:59.5]} 7... Ne4 {[%clk 0:02:38.8]} 8. cxd4 {[%clk 0:02:59.8]}
8... Bb6 {[%clk 0:02:38.2]} 9. Nc3 {[%clk 0:02:54.9]} 9... Nxc3 {[%clk
0:02:36.6]} 10. bxc3 {[%clk 0:02:55.8]} 10... O-O {[%clk 0:02:36.4]} 11. h3
{[%clk 0:02:54.9]} 11... Ne7 {[%clk 0:02:36]} 12. O-O {[%clk 0:02:54.8]} 12...
c6 {[%clk 0:02:32.4]} 13. Bd3 {[%clk 0:02:55]} 13... f6 {[%clk 0:02:32.9]} 14.
Qc2 {[%clk 0:02:51.1]} 14... g6 {[%clk 0:02:25]} 15. exf6 {[%clk 0:02:50]} 15...
Rxf6 {[%clk 0:02:25.9]} 16. Bg5 {[%clk 0:02:50.1]} 16... Re6 {[%clk 0:02:26.5]}
17. Rae1 {[%clk 0:02:47.2]} 17... Bc7 {[%clk 0:02:17.2]} 18. Rxe6 {[%clk
0:02:37.5]} 18... Bxe6 {[%clk 0:02:16.1]} 19. Re1 {[%clk 0:02:38]} 19... Qd6
{[%clk 0:02:14]} 20. Qe2 {[%clk 0:02:33.7]} 1-0

[Event "Early-Titled-Tuesday-Blitz-February-06-2024"]
[Site "Chess.com"]
[Date "2024.02.06"]
[Round "5"]
[White "Rikikits"]
[Black "Semetey"]
[Result "1-0"]
[WhiteElo "2838"]
[BlackElo "2637"]
[TimeControl "180+1"]
[EndTime "8:51:14 PST"]
[Termination "Rikikits won by checkmate"]

1. d4 {[%clk 0:03:00.9]} 1... e6 {[%clk 0:02:46.7]} 2. e4 {[%clk 0:02:58.3]}
2... b6 {[%clk 0:02:46.9]} 3. Nc3 {[%clk 0:02:57.2]} 3... Bb7 {[%clk 0:02:46.5]}
4. Bd3 {[%clk 0:02:57.4]} 4... Bb4 {[%clk 0:02:43.3]} 5. Ne2 {[%clk 0:02:57.6]}
5... Nf6 {[%clk 0:02:40.6]} 6. O-O {[%clk 0:02:56.5]} 6... d5 {[%clk 0:02:40.1]}
7. e5 {[%clk 0:02:56.8]} 7... Nfd7 {[%clk 0:02:39.9]} 8. Nf4 {[%clk 0:02:51.3]}
8... g6 {[%clk 0:02:32.8]} 9. Qg4 {[%clk 0:02:48]} 9... Bxc3 {[%clk 0:02:24]}
10. bxc3 {[%clk 0:02:47.5]} 10... Qe7 {[%clk 0:02:22.9]} 11. a4 {[%clk
0:02:45.1]} 11... c5 {[%clk 0:02:22.9]} 12. a5 {[%clk 0:02:43.1]} 12... Nc6
{[%clk 0:02:19.3]} 13. a6 {[%clk 0:02:42.5]} 13... Bc8 {[%clk 0:02:19.1]} 14.
Bb5 {[%clk 0:02:38.3]} 14... Na5 {[%clk 0:02:11]} 15. dxc5 {[%clk 0:02:10.7]}
15... Qxc5 {[%clk 0:02:06.7]} 16. Nxe6 {[%clk 0:02:09.6]} 16... fxe6 {[%clk
0:01:59.9]} 17. Ba3 {[%clk 0:01:58.6]} 17... Qxb5 {[%clk 0:01:56.7]} 18. Qxe6+
{[%clk 0:01:58.3]} 18... Kd8 {[%clk 0:01:57.1]} 19. Be7+ {[%clk 0:01:58]} 19...
Kc7 {[%clk 0:01:54.4]} 20. Qd6# {[%clk 0:01:56.8]} 1-0

[Event "Early-Titled-Tuesday-Blitz-February-06-2024"]
[Site "Chess.com"]
[Date "2024.02.06"]
[Round "5"]
[White "SARGISMV"]
[Black "nekotyanof"]
[Result "1-0"]
[WhiteElo "2473"]
[BlackElo "2631"]
[TimeControl "180+1"]
[EndTime "8:51:31 PST"]
[Termination "SARGISMV won by resignation"]

1. d4 {[%clk 0:02:59.4]} 1... Nf6 {[%clk 0:02:59.4]} 2. c4 {[%clk 0:02:59.3]}
2... g6 {[%clk 0:03:00]} 3. Nc3 {[%clk 0:02:59.5]} 3... d5 {[%clk 0:03:00.5]} 4.
cxd5 {[%clk 0:02:59.4]} 4... Nxd5 {[%clk 0:03:01.4]} 5. Bd2 {[%clk 0:02:59]}
5... Bg7 {[%clk 0:03:01.5]} 6. Nf3 {[%clk 0:02:59.6]} 6... Nxc3 {[%clk
0:03:02.2]} 7. Bxc3 {[%clk 0:02:59.8]} 7... O-O {[%clk 0:03:03.1]} 8. Rc1 {[%clk
0:02:57.8]} 8... Nd7 {[%clk 0:03:02.9]} 9. e4 {[%clk 0:02:57.5]} 9... Nf6 {[%clk
0:02:58.4]} 10. Bd3 {[%clk 0:02:55.1]} 10... Bg4 {[%clk 0:02:57.4]} 11. h3
{[%clk 0:02:53.8]} 11... Bxf3 {[%clk 0:02:36.4]} 12. Qxf3 {[%clk 0:02:54.7]}
12... e5 {[%clk 0:02:37.3]} 13. d5 {[%clk 0:02:33.8]} 13... Ne8 {[%clk
0:02:34.5]} 14. g4 {[%clk 0:02:22.6]} 14... Nd6 {[%clk 0:02:34.7]} 15. h4 {[%clk
0:02:19.5]} 15... f5 {[%clk 0:02:33.8]} 16. gxf5 {[%clk 0:02:10.1]} 16... gxf5
{[%clk 0:02:33.8]} 17. exf5 {[%clk 0:02:04.8]} 17... e4 {[%clk 0:02:33.3]} 18.
Qg4 {[%clk 0:01:57.3]} 18... Qd7 {[%clk 0:02:27.6]} 19. Rg1 {[%clk 0:01:53.3]}
19... Nxf5 {[%clk 0:02:24.3]} 20. Bxg7 {[%clk 0:01:40.8]} 20... exd3 {[%clk
0:02:17.8]} 21. Be5+ {[%clk 0:01:25.1]} 21... Kf7 {[%clk 0:02:17.6]} 22. Rxc7
{[%clk 0:01:25.6]} 1-0

[Event "Early-Titled-Tuesday-Blitz-February-06-2024"]
[Site "Chess.com"]
[Date "2024.02.06"]
[Round "5"]
[White "verrbaa"]
[Black "CarlosjPineror"]
[Result "0-1"]
[WhiteElo "2490"]
[BlackElo "2719"]
[TimeControl "180+1"]
[EndTime "8:51:39 PST"]
[Termination "CarlosjPineror won by resignation"]

1. e4 {[%clk 0:03:00.9]} 1... c5 {[%clk 0:03:00.1]} 2. Nf3 {[%clk 0:02:59.7]}
2... e6 {[%clk 0:03:00.3]} 3. d4 {[%clk 0:02:57.3]} 3... cxd4 {[%clk 0:03:01.2]}
4. Nxd4 {[%clk 0:02:57.6]} 4... a6 {[%clk 0:03:01.7]} 5. Bd3 {[%clk 0:02:51]}
5... Qc7 {[%clk 0:03:02.3]} 6. O-O {[%clk 0:02:50.7]} 6... Nf6 {[%clk
0:03:02.9]} 7. Qe2 {[%clk 0:02:50.9]} 7... h5 {[%clk 0:03:03.5]} 8. e5 {[%clk
0:02:18.1]} 8... Ng4 {[%clk 0:03:03]} 9. Bf4 {[%clk 0:02:18.4]} 9... f5 {[%clk
0:03:02.2]} 10. h3 {[%clk 0:02:12.1]} 10... Bc5 {[%clk 0:03:00.3]} 11. Nb3
{[%clk 0:02:10.1]} 11... Ba7 {[%clk 0:02:59.6]} 12. c4 {[%clk 0:01:44.4]} 12...
Nc6 {[%clk 0:02:55.7]} 13. hxg4 {[%clk 0:01:39.6]} 13... hxg4 {[%clk 0:02:55.3]}
14. c5 {[%clk 0:01:39.5]} 14... Qd8 {[%clk 0:02:50]} 15. g3 {[%clk 0:01:30.3]}
15... b6 {[%clk 0:02:37.6]} 16. Kg2 {[%clk 0:01:26.5]} 16... Bb7 {[%clk
0:02:31.7]} 17. Kg1 {[%clk 0:01:11]} 17... Nd4 {[%clk 0:02:30]} 0-1

[Event "Early-Titled-Tuesday-Blitz-February-06-2024"]
[Site "Chess.com"]
[Date "2024.02.06"]
[Round "5"]
[White "andrzej"]
[Black "djano"]
[Result "1/2-1/2"]
[WhiteElo "2429"]
[BlackElo "2600"]
[TimeControl "180+1"]
[EndTime "8:51:39 PST"]
[Termination "Game drawn by repetition"]

1. e4 {[%clk 0:03:00.9]} 1... c5 {[%clk 0:03:00]} 2. Nf3 {[%clk 0:02:56.2]} 2...
Nc6 {[%clk 0:02:59.7]} 3. d4 {[%clk 0:02:56.5]} 3... cxd4 {[%clk 0:02:59.5]} 4.
Nxd4 {[%clk 0:02:57.4]} 4... g6 {[%clk 0:02:59.3]} 5. c4 {[%clk 0:02:57.1]} 5...
e5 {[%clk 0:02:59.4]} 6. Nc2 {[%clk 0:02:47.1]} 6... d6 {[%clk 0:02:58.9]} 7.
Nc3 {[%clk 0:02:41.5]} 7... Nf6 {[%clk 0:02:59]} 8. Bg5 {[%clk 0:02:38.2]} 8...
h6 {[%clk 0:02:52.6]} 9. Bxf6 {[%clk 0:02:36.5]} 9... Qxf6 {[%clk 0:02:53.5]}
10. Nd5 {[%clk 0:02:36.9]} 10... Qd8 {[%clk 0:02:51.9]} 11. Qf3 {[%clk
0:02:35.9]} 11... Bg7 {[%clk 0:02:49.8]} 12. Rd1 {[%clk 0:02:33.7]} 12... O-O
{[%clk 0:02:49]} 13. Be2 {[%clk 0:02:29.4]} 13... Qa5+ {[%clk 0:02:38.9]} 14.
Qc3 {[%clk 0:02:03.9]} 14... Qxc3+ {[%clk 0:02:30]} 15. Nxc3 {[%clk 0:02:03.6]}
15... Nd4 {[%clk 0:02:19]} 16. Nxd4 {[%clk 0:02:01.2]} 16... exd4 {[%clk
0:02:19.9]} 17. Nb5 {[%clk 0:02:01.5]} 17... d3 {[%clk 0:02:12.5]} 18. Rxd3
{[%clk 0:02:00.7]} 18... Bxb2 {[%clk 0:02:12.8]} 19. Nc7 {[%clk 0:01:50.3]}
19... Rb8 {[%clk 0:02:09.6]} 20. Rb3 {[%clk 0:01:50.5]} 20... Bd4 {[%clk
0:01:53.8]} 21. Na6 {[%clk 0:01:44.7]} 21... Ra8 {[%clk 0:01:52.8]} 22. Nc7
{[%clk 0:01:44.6]} 22... Rb8 {[%clk 0:01:52.4]} 23. Na6 {[%clk 0:01:45.1]} 23...
Ra8 {[%clk 0:01:52.6]} 24. Nc7 {[%clk 0:01:45.1]} 24... Rb8 {[%clk 0:01:52.9]}
1/2-1/2

[Event "Early-Titled-Tuesday-Blitz-February-06-2024"]
[Site "Chess.com"]
[Date "2024.02.06"]
[Round "5"]
[White "NtcPou"]
[Black "wild3000"]
[Result "0-1"]
[WhiteElo "2017"]
[BlackElo "2363"]
[TimeControl "180+1"]
[EndTime "8:51:41 PST"]
[Termination "wild3000 won by resignation"]

1. e4 {[%clk 0:03:00.9]} 1... c6 {[%clk 0:02:10.2]} 2. d4 {[%clk 0:02:49]} 2...
d5 {[%clk 0:02:10]} 3. e5 {[%clk 0:02:48.2]} 3... Bf5 {[%clk 0:02:09.7]} 4. Nd2
{[%clk 0:02:48.4]} 4... e6 {[%clk 0:02:09.8]} 5. Nb3 {[%clk 0:02:48.3]} 5... Nd7
{[%clk 0:02:09]} 6. Nf3 {[%clk 0:02:48.1]} 6... h6 {[%clk 0:02:08.4]} 7. Be2
{[%clk 0:02:47.9]} 7... a5 {[%clk 0:02:06.9]} 8. a4 {[%clk 0:02:46.3]} 8... c5
{[%clk 0:02:02.5]} 9. dxc5 {[%clk 0:02:41.3]} 9... Bxc5 {[%clk 0:01:59.5]} 10.
Nxc5 {[%clk 0:02:40.4]} 10... Nxc5 {[%clk 0:01:59.7]} 11. Bb5+ {[%clk
0:02:39.3]} 11... Kf8 {[%clk 0:01:59.5]} 12. O-O {[%clk 0:02:37.3]} 12... Ne7
{[%clk 0:01:59.1]} 13. Nd4 {[%clk 0:02:36.9]} 13... Rc8 {[%clk 0:01:58.1]} 14.
c3 {[%clk 0:02:24.3]} 14... Bg6 {[%clk 0:01:57.5]} 15. f4 {[%clk 0:02:23.1]}
15... Nf5 {[%clk 0:01:56.8]} 16. Nxf5 {[%clk 0:02:15.1]} 16... Bxf5 {[%clk
0:01:56.8]} 17. g4 {[%clk 0:02:15]} 17... Be4 {[%clk 0:01:55.8]} 18. Be3 {[%clk
0:02:08.8]} 18... Qh4 {[%clk 0:01:46.9]} 19. Bf2 {[%clk 0:02:05.9]} 19... Qh3
{[%clk 0:01:44.9]} 0-1

[Event "Early-Titled-Tuesday-Blitz-February-06-2024"]
[Site "Chess.com"]
[Date "2024.02.06"]
[Round "5"]
[White "Vaibhavraut99"]
[Black "amanjazu"]
[Result "1-0"]
[WhiteElo "2730"]
[BlackElo "2456"]
[TimeControl "180+1"]
[EndTime "8:51:49 PST"]
[Termination "Vaibhavraut99 won by resignation"]

1. c4 {[%clk 0:03:00.9]} 1... e5 {[%clk 0:02:59.3]} 2. g3 {[%clk 0:03:00.5]}
2... Nc6 {[%clk 0:02:59.7]} 3. Bg2 {[%clk 0:03:00.6]} 3... f5 {[%clk 0:02:58.7]}
4. Nc3 {[%clk 0:02:52.6]} 4... Nf6 {[%clk 0:02:57.6]} 5. e3 {[%clk 0:02:53.3]}
5... d6 {[%clk 0:02:51.8]} 6. d4 {[%clk 0:02:53]} 6... Be7 {[%clk 0:02:51.2]} 7.
Nge2 {[%clk 0:02:47.1]} 7... O-O {[%clk 0:02:49.7]} 8. O-O {[%clk 0:02:47.4]}
8... e4 {[%clk 0:02:44.3]} 9. f3 {[%clk 0:02:41.6]} 9... exf3 {[%clk 0:02:42.6]}
10. Bxf3 {[%clk 0:02:42.5]} 10... g6 {[%clk 0:02:40.2]} 11. Bd2 {[%clk
0:02:42.2]} 11... Re8 {[%clk 0:02:39.1]} 12. Qc2 {[%clk 0:02:41.5]} 12... Bf8
{[%clk 0:02:38.9]} 13. Rae1 {[%clk 0:02:41.6]} 13... Bg7 {[%clk 0:02:39.2]} 14.
Nf4 {[%clk 0:02:41.3]} 14... Ne7 {[%clk 0:02:36.1]} 15. Qd3 {[%clk 0:02:27.8]}
15... c6 {[%clk 0:02:28.3]} 16. d5 {[%clk 0:02:20.3]} 16... c5 {[%clk
0:02:25.9]} 17. e4 {[%clk 0:02:19.5]} 17... fxe4 {[%clk 0:02:24.5]} 18. Nxe4
{[%clk 0:02:19.2]} 18... Bf5 {[%clk 0:02:22.5]} 19. Bc3 {[%clk 0:02:17.5]} 19...
Nxe4 {[%clk 0:02:18.3]} 20. Bxe4 {[%clk 0:02:16]} 20... Bxc3 {[%clk 0:02:17.3]}
21. Qxc3 {[%clk 0:02:16.1]} 21... Bxe4 {[%clk 0:02:14.2]} 22. Ne6 {[%clk
0:02:10.9]} 22... Nf5 {[%clk 0:02:07.8]} 23. Nxd8 {[%clk 0:01:58.1]} 23... Raxd8
{[%clk 0:02:08.7]} 24. Qf6 {[%clk 0:01:53.6]} 24... Nd4 {[%clk 0:01:57.8]} 25.
Rxe4 {[%clk 0:01:46.7]} 1-0

[Event "Early-Titled-Tuesday-Blitz-February-06-2024"]
[Site "Chess.com"]
[Date "2024.02.06"]
[Round "5"]
[White "IriBu"]
[Black "PapaieDudu"]
[Result "0-1"]
[WhiteElo "2529"]
[BlackElo "2426"]
[TimeControl "180+1"]
[EndTime "8:51:51 PST"]
[Termination "PapaieDudu won by resignation"]

1. Nf3 {[%clk 0:02:59.2]} 1... d5 {[%clk 0:02:58.8]} 2. g3 {[%clk 0:02:59.4]}
2... Nf6 {[%clk 0:02:58.7]} 3. Bg2 {[%clk 0:02:59.9]} 3... e6 {[%clk 0:02:59.2]}
4. d3 {[%clk 0:03:00.4]} 4... Be7 {[%clk 0:02:45.8]} 5. Nbd2 {[%clk 0:02:59.9]}
5... O-O {[%clk 0:02:46.6]} 6. e4 {[%clk 0:02:59.5]} 6... b6 {[%clk 0:02:46]} 7.
e5 {[%clk 0:02:58.6]} 7... Nfd7 {[%clk 0:02:46.5]} 8. O-O {[%clk 0:02:58]} 8...
Bb7 {[%clk 0:02:45]} 9. Re1 {[%clk 0:02:58.3]} 9... d4 {[%clk 0:02:40.5]} 10.
Nxd4 {[%clk 0:02:32.4]} 10... Bxg2 {[%clk 0:02:40.3]} 11. Kxg2 {[%clk
0:02:33.1]} 11... Nxe5 {[%clk 0:02:41]} 12. Nxe6 {[%clk 0:02:23.4]} 12... Qd5+
{[%clk 0:02:37.4]} 13. Kg1 {[%clk 0:02:07.1]} 13... fxe6 {[%clk 0:02:36.6]} 14.
Qe2 {[%clk 0:01:59.1]} 14... Bc5 {[%clk 0:01:47.4]} 15. Rf1 {[%clk 0:01:46.3]}
15... Nbc6 {[%clk 0:01:43.9]} 16. Nb3 {[%clk 0:01:32]} 16... Nf3+ {[%clk
0:01:40.8]} 0-1

[Event "Early-Titled-Tuesday-Blitz-February-06-2024"]
[Site "Chess.com"]
[Date "2024.02.06"]
[Round "5"]
[White "RamonManon0g"]
[Black "SharapovEvgeny"]
[Result "0-1"]
[WhiteElo "2408"]
[BlackElo "2536"]
[TimeControl "180+1"]
[EndTime "8:51:57 PST"]
[Termination "SharapovEvgeny won by resignation"]

1. e4 {[%clk 0:03:00.9]} 1... c5 {[%clk 0:02:59.8]} 2. Nf3 {[%clk 0:03:00.1]}
2... d6 {[%clk 0:03:00]} 3. Bb5+ {[%clk 0:02:58.6]} 3... Bd7 {[%clk 0:02:58.8]}
4. Bxd7+ {[%clk 0:02:58.2]} 4... Qxd7 {[%clk 0:02:58.6]} 5. c4 {[%clk
0:02:58.8]} 5... Nf6 {[%clk 0:02:58.1]} 6. Nc3 {[%clk 0:02:58.3]} 6... g6 {[%clk
0:02:58.8]} 7. O-O {[%clk 0:02:56.2]} 7... Bg7 {[%clk 0:02:59.1]} 8. d4 {[%clk
0:02:56.6]} 8... cxd4 {[%clk 0:02:58]} 9. Nxd4 {[%clk 0:02:57.5]} 9... O-O
{[%clk 0:02:58.3]} 10. f3 {[%clk 0:02:56.9]} 10... Rc8 {[%clk 0:02:58.2]} 11. b3
{[%clk 0:02:53.1]} 11... d5 {[%clk 0:02:58.2]} 12. exd5 {[%clk 0:02:43.6]} 12...
Nxd5 {[%clk 0:02:58.2]} 13. Nxd5 {[%clk 0:02:42]} 13... e6 {[%clk 0:02:58.3]}
14. Be3 {[%clk 0:02:00]} 14... exd5 {[%clk 0:02:58.1]} 15. c5 {[%clk 0:01:43.1]}
15... Na6 {[%clk 0:02:54]} 16. Rc1 {[%clk 0:01:34.1]} 16... Nxc5 {[%clk
0:02:51.9]} 17. Nb5 {[%clk 0:01:26.9]} 17... b6 {[%clk 0:02:49.8]} 18. b4 {[%clk
0:01:26.9]} 18... Qxb5 {[%clk 0:02:49.3]} 19. bxc5 {[%clk 0:01:26]} 19... d4
{[%clk 0:02:47.9]} 20. Bd2 {[%clk 0:00:45.7]} 20... bxc5 {[%clk 0:02:46.8]} 21.
Re1 {[%clk 0:00:44.6]} 21... c4 {[%clk 0:02:45.9]} 22. Be3 {[%clk 0:00:30.7]}
22... dxe3 {[%clk 0:02:44.1]} 0-1